bitfinex/quotes_SOLUSD_20220212
["timestamp","ask_amount","ask_price","bid_price","bid_amount"]
[1644704084622,5.216,95.884,95.803,0.25]
[1644704084823,4.67200884,95.883,95.803,0.25]
[1644704085336,4.67200884,95.884,95.803,0.25]
[1644704085536,5.216,95.883,95.803,0.25]
[1644704085737,4.67200884,95.882,95.803,0.25]
[1644704086136,4.67200884,95.884,95.803,0.25]
[1644704086339,5.216,95.883,95.802,104.3]
[1644704086537,4.67200884,95.882,95.802,104.3]
[1644704087139,4.67200884,95.885,95.802,104.3]
[1644704087340,4.67200884,95.885,95.801,44.0134853]
[1644704087540,5.216,95.884,95.801,44.0134853]
[1644704087741,4.67200884,95.883,95.802,0.25]
[1644704087942,4.67200884,95.885,95.802,0.25]
[1644704088441,7.60108505,95.885,95.802,0.25]
[1644704088642,7.60108505,95.885,95.802,104.55]
[1644704088841,4.67200884,95.885,95.802,0.25]
[1644704089041,7.60108505,95.885,95.802,0.25]
[1644704089244,5.216,95.884,95.802,0.25]
[1644704089441,4.67200884,95.883,95.801,44.0134853]
[1644704089642,2.92907621,95.881,95.77,15.0]
[1644704089842,29.6806,95.88,95.76,15.0]
[1644704090142,2.92907621,95.869,95.761,24.4297]
[1644704090342,2.92907621,95.865,95.761,24.4297]
[1644704090545,2.92907621,95.864,95.762,44.33395304]
[1644704090743,2.92907621,95.863,95.763,104.3]
[1644704091142,2.92907621,95.863,95.764,0.25]
[1644704091344,2.92907621,95.866,95.764,0.25]
[1644704091543,4.67200884,95.862,95.764,0.25]
[1644704091745,4.67200884,95.864,95.764,0.25]
[1644704091943,15.6576,95.86,95.764,0.25]
[1644704092143,35.72125218,95.858,95.764,0.25]
[1644704092344,4.67200884,95.857,95.764,0.25]
[1644704092543,5.218,95.856,95.764,0.25]
[1644704092746,4.67200884,95.855,95.764,0.25]
[1644704092946,2.92907621,95.849,95.764,0.25]
[1644704093144,108.97200884,95.849,95.764,0.25]
[1644704093347,29.33630884,95.848,95.764,0.25]
[1644704093545,4.67200884,95.847,95.764,0.25]
[1644704093745,5.218,95.846,95.764,0.25]
[1644704093947,15.6611,95.84,95.764,0.25]
[1644704094145,5.219,95.839,95.764,0.25]
[1644704094545,7.84290296,95.839,95.764,0.25]
[1644704095549,104.3,95.838,95.764,0.25]
[1644704095747,32.15276738,95.828,95.764,0.25]
[1644704095947,23.2888,95.827,95.764,0.25]
[1644704096147,5.219,95.826,95.764,0.25]
[1644704096647,15.6643,95.82,95.764,0.25]
[1644704096849,5.219,95.819,95.764,0.25]
[1644704098147,15.6643,95.82,95.764,0.25]
[1644704101351,5.219,95.819,95.764,0.25]
[1644704102654,15.6643,95.82,95.764,0.25]
[1644704102853,5.219,95.819,95.764,0.25]
[1644704103256,23.2888,95.827,95.764,0.25]
[1644704105055,23.2888,95.827,95.765,2.62390296]
[1644704105256,5.219,95.865,95.765,2.62390296]
[1644704105557,5.219,95.847,95.765,2.62390296]
[1644704105755,5.219,95.847,95.764,0.25]
[1644704105958,69.14257852,95.84,95.764,0.25]
[1644704106457,5.219,95.839,95.764,0.25]
[1644704106658,5.469,95.839,95.764,0.25]
[1644704109762,0.25,95.839,95.764,0.25]
[1644704110561,5.219,95.838,95.764,0.25]
[1644704111761,69.14257852,95.84,95.764,0.25]
[1644704111964,0.25,95.837,95.764,0.25]
[1644704112163,5.219,95.836,95.764,0.25]
[1644704113362,0.25,95.837,95.764,0.25]
[1644704113961,1.46392422,95.831,95.764,0.25]
[1644704114362,5.219,95.83,95.764,0.25]
[1644704114562,1.46392422,95.83,95.764,0.25]
[1644704114765,1.46392422,95.832,95.764,0.25]
[1644704115663,1.46392422,95.834,95.764,0.25]
[1644704115863,1.46392422,95.838,95.764,0.25]
[1644704116061,1.46392422,95.836,95.764,0.25]
[1644704116263,1.46392422,95.835,95.764,0.25]
[1644704116462,1.46392422,95.838,95.752,0.024]
[1644704116662,1.46392422,95.835,95.751,104.3]
[1644704117163,1.46392422,95.835,95.751,106.92390296]
[1644704117368,1.46392422,95.838,95.76,15.6553]
[1644704117563,15.0,95.87,95.76,15.6553]
[1644704117564,1.46392422,95.842,95.761,104.3]
[1644704117766,1.46392422,95.848,95.761,107.17390296]
[1644704117968,1.46392422,95.85,95.762,2.62390296]
[1644704118165,1.46392422,95.85,95.762,17.9402582]
[1644704118366,1.46392422,95.852,95.763,61.76908596]
[1644704118567,1.46392422,95.855,95.763,69.61198892]
[1644704118766,1.46392422,95.858,95.764,28.00782784]
[1644704118968,1.46392422,95.862,95.765,5.219]
[1644704119169,1.46392422,95.863,95.78,20.6672708]
[1644704119369,1.46392422,95.865,95.781,104.3]
[1644704119569,1.46392422,95.87,95.781,104.3]
[1644704119768,24.2041,95.909,95.782,5.216]
[1644704119769,1.46392422,95.879,95.782,5.216]
[1644704119974,1.46392422,95.88,95.783,95.81174468]
[1644704120169,1.46392422,95.892,95.784,5.216]
[1644704120469,0.02996338,95.917,95.784,5.216]
[1644704120470,1.46392422,95.894,95.79,15.6449]
[1644704120670,1.46392422,95.895,95.8,15.0]
[1644704120873,1.46392422,95.894,95.801,104.3]
[1644704121070,1.46392422,95.894,95.811,4.26]
[1644704121270,42.19797962,95.893,95.82,15.0]
[1644704121472,42.19797962,95.893,95.821,104.3]
[1644704121770,42.19797962,95.893,95.842,37.73383227]
[1644704121972,1.46392422,95.896,95.843,104.3]
[1644704122270,1.46392422,95.905,95.843,106.92390296]
[1644704122472,2.92907621,95.932,95.843,106.92390296]
[1644704122473,1.46392422,95.907,95.844,2.62390296]
[1644704122669,1.46392422,95.906,95.844,2.62390296]
[1644704123271,4.72104434,95.928,95.851,104.3]
[1644704123272,1.46392422,95.907,95.851,104.3]
[1644704123476,1.46392422,95.914,95.851,104.3]
[1644704123672,1.46392422,95.916,95.852,7.83790296]
[1644704123870,1.46392422,95.918,95.86,15.0]
[1644704124071,1.46392422,95.921,95.862,38.25824173]
[1644704124275,1.46392422,95.933,95.87,15.6368]
[1644704124471,47.97379003,95.938,95.87,15.6368]
[1644704124671,47.97379003,95.938,95.871,109.513]
[1644704124873,47.97379003,95.938,95.871,106.92390296]
[1644704125174,46.50986581,95.938,95.872,2.62390296]
[1644704126391,1.46392422,95.946,95.872,2.62390296]
[1644704126592,1.46392422,95.947,95.88,15.6359]
[1644704126792,1.46392422,95.949,95.881,104.3]
[1644704126992,1.46392422,95.956,95.881,106.92390296]
[1644704127294,40.81486926,95.957,95.883,47.05205268]
[1644704127795,40.81486926,95.957,95.89,15.6341]
[1644704127993,40.81486926,95.957,95.891,104.3]
[1644704128193,40.81486926,95.957,95.891,106.92390296]
[1644704128392,40.81486926,95.957,95.893,104.3]
[1644704128792,40.81486926,95.957,95.894,2.62390296]
[1644704128993,40.81486926,95.957,95.894,7.83590296]
[1644704129193,40.81486926,95.957,95.894,2.62390296]
[1644704129394,40.81486926,95.957,95.895,2.62390296]
[1644704130398,1.46392422,95.974,95.895,2.62390296]
[1644704130596,5.211,95.973,95.895,2.62390296]
[1644704130796,0.25,95.973,95.9,15.6329]
[1644704131000,0.25,95.973,95.901,109.511]
[1644704131198,0.25,95.973,95.901,112.13490296]
[1644704131497,0.25,95.973,95.9,15.6329]
[1644704131498,37.6308201,95.973,95.903,104.3]
[1644704131899,37.6308201,95.973,95.904,2.62390296]
[1644704132098,37.6308201,95.973,95.903,104.3]
[1644704132099,5.211,95.972,95.903,104.3]
[1644704132398,37.6308201,95.973,95.903,106.92390296]
[1644704133400,5.211,95.972,95.903,106.92390296]
[1644704135701,37.6308201,95.973,95.903,106.92390296]
[1644704138509,24.2977,95.972,95.904,5.211]
[1644704138909,37.6308201,95.973,95.904,5.211]
[1644704139108,37.6308201,95.973,95.903,106.92390296]
[1644704139308,1.46392422,95.974,95.903,106.92390296]
[1644704139509,1.46392422,95.974,95.905,2.62390296]
[1644704139711,1.46392422,95.979,95.905,2.62390296]
[1644704139914,1.46392422,95.98,95.906,5.211]
[1644704140112,1.46392422,95.98,95.905,2.62390296]
[1644704140312,1.46392422,95.977,95.907,2.62390296]
[1644704140913,43.36026593,95.979,95.91,15.6311]
[1644704141415,43.36026593,95.979,95.911,106.92390296]
[1644704141811,1.46392422,95.984,95.912,2.62390296]
[1644704142011,1.46392422,95.985,95.912,2.62390296]
[1644704142614,1.46392422,95.986,95.913,5.211]
[1644704142812,22.6694,95.998,95.913,5.211]
[1644704142813,39.06688202,95.985,95.921,104.3]
[1644704143015,1.46392422,95.984,95.922,43.82435131]
[1644704143214,1.46392422,95.984,95.922,46.44825427]
[1644704143413,1.46392422,95.984,95.923,104.3]
[1644704143615,37.6029578,95.985,95.923,112.13390296]
[1644704143813,37.6029578,95.985,95.924,2.62390296]
[1644704144012,1.46392422,95.987,95.924,2.62390296]
[1644704144211,1.46392422,95.982,95.924,2.62390296]
[1644704144414,1.46392422,95.985,95.93,15.6278]
[1644704144712,1.46392422,95.986,95.931,7.83390296]
[1644704144912,1.46392422,95.987,95.931,112.13390296]
[1644704145112,1.46392422,95.986,95.932,2.62390296]
[1644704145311,1.46392422,95.987,95.932,2.62390296]
[1644704145512,1.46392422,95.986,95.933,5.21]
[1644704145912,1.46392422,95.986,95.934,2.62390296]
[1644704146315,1.46392422,95.978,95.934,2.62390296]
[1644704146513,1.46392422,95.974,95.934,2.62390296]
[1644704147213,1.46392422,95.974,95.935,5.21]
[1644704147413,1.46392422,95.973,95.935,5.21]
[1644704147814,1.46392422,95.973,95.936,2.62390296]
[1644704148012,1.46392422,95.973,95.937,47.70755043]
[1644704148214,1.46392422,95.968,95.937,47.70755043]
[1644704148416,1.46392422,95.967,95.938,104.3]
[1644704148614,1.46392422,95.966,95.938,104.3]
[1644704149014,1.46392422,95.967,95.938,104.3]
[1644704149215,1.46392422,95.967,95.937,47.70755043]
[1644704149417,1.46392422,95.966,95.937,47.70755043]
[1644704149815,1.46392422,95.961,95.937,47.70755043]
[1644704150016,1.46392422,95.96,95.937,47.70755043]
[1644704150215,38.88493966,95.978,95.937,47.70755043]
[1644704150216,1.46392422,95.955,95.937,47.70755043]
[1644704150718,1.46392422,95.955,95.938,0.25]
[1644704150918,1.46392422,95.959,95.938,104.55]
[1644704151117,1.46392422,95.958,95.938,104.55]
[1644704151417,1.46392422,95.957,95.938,104.55]
[1644704151618,1.46392422,95.957,95.938,0.25]
[1644704151815,4.73940215,95.997,95.938,0.25]
[1644704151816,1.46392422,95.955,95.938,0.25]
[1644704152217,1.46392422,95.95,95.938,104.55]
[1644704152443,1.46392422,95.95,95.938,0.25]
[1644704152818,1.46392422,95.951,95.938,0.25]
[1644704153017,1.46392422,95.95,95.938,0.25]
[1644704153218,1.46392422,95.949,95.938,0.25]
[1644704153420,1.46392422,95.947,95.938,0.25]
[1644704153618,1.46392422,95.946,95.938,0.25]
[1644704154219,1.46392422,95.945,95.938,0.25]
[1644704154421,1.46392422,95.941,95.938,0.25]
[1644704154620,1.46392422,95.94,95.938,0.25]
[1644704154819,1.46392422,95.939,95.938,0.25]
[1644704155319,4.75013923,95.961,95.938,0.25]
[1644704155519,1.47281449,95.939,95.938,0.25]
[1644704156120,1.47281449,95.94,95.938,0.25]
[1644704156320,4.75339803,95.961,95.938,0.25]
[1644704160526,7.68247424,95.961,95.938,0.25]
[1644704160928,4.75339803,95.961,95.938,0.25]
[1644704161129,2.92907621,95.964,95.938,0.25]
[1644704161326,1.47492393,95.943,95.938,0.25]
[1644704161528,2.92907621,95.982,95.938,0.25]
[1644704161729,2.92907621,95.984,95.938,0.25]
[1644704161926,2.92907621,95.984,95.94,48.23702246]
[1644704162332,2.92907621,95.984,95.941,2.62390296]
[1644704162529,2.92907621,95.986,95.942,104.3]
[1644704162736,2.92907621,95.987,95.942,104.3]
[1644704162930,2.92907621,95.988,95.943,2.62390296]
[1644704163133,2.92907621,95.987,95.943,2.62390296]
[1644704163330,2.92907621,95.986,95.943,2.62390296]
[1644704165031,2.92907621,95.987,95.943,2.62390296]
[1644704165232,2.92907621,95.987,95.943,7.83390296]
[1644704165432,2.92907621,95.987,95.944,104.3]
[1644704165631,2.92907621,95.987,95.944,106.92390296]
[1644704165833,2.92907621,95.987,95.945,2.62390296]
[1644704166033,2.92907621,95.986,95.945,2.62390296]
[1644704166235,2.92907621,95.987,95.945,2.62390296]
[1644704167454,2.92907621,95.986,95.945,2.62390296]
[1644704167655,2.92907621,95.985,95.945,2.62390296]
[1644704168261,2.92907621,95.987,95.945,2.62390296]
[1644704168458,2.92907621,96.002,95.946,5.208]
[1644704168661,2.92907621,96.011,95.951,104.3]
[1644704168863,2.92907621,96.016,95.952,5.208]
[1644704169061,2.92907621,96.017,95.952,7.83190296]
[1644704169261,2.92907621,96.021,95.953,2.62390296]
[1644704169464,2.92907621,96.021,95.956,104.3]
[1644704169662,2.92907621,96.021,95.96,15.0]
[1644704169863,2.92907621,96.022,95.96,30.6214]
[1644704170069,2.92907621,96.022,95.961,7.83190296]
[1644704170262,2.92907621,96.024,95.961,7.83190296]
[1644704170461,2.92907621,96.024,95.962,2.62390296]
[1644704170664,2.92907621,96.024,95.963,5.208]
[1644704170863,2.92907621,96.027,95.963,5.208]
[1644704171061,2.92907621,96.027,95.964,2.62390296]
[1644704171465,2.92907621,96.037,95.964,2.62390296]
[1644704171865,2.92907621,96.037,95.97,15.6207]
[1644704172063,2.92907621,96.037,95.971,104.3]
[1644704172264,42.55399935,96.039,95.972,47.2157213]
[1644704172464,4.70925002,96.038,95.972,49.83962426]
[1644704172664,2.92907621,96.037,95.972,49.83962426]
[1644704172866,27.26117621,96.037,95.973,106.92390296]
[1644704173066,4.70925002,96.036,95.973,106.92390296]
[1644704173268,4.70925002,96.036,95.974,2.62390296]
[1644704173467,4.70925002,96.036,95.975,5.208]
[1644704173970,7.63832623,96.036,95.975,5.208]
[1644704174169,4.70925002,96.036,95.975,5.208]
[1644704174769,4.70925002,96.036,95.974,2.62390296]
[1644704174970,4.70925002,96.036,95.976,2.62390296]
[1644704175172,4.70925002,96.036,95.98,15.62]
[1644704175372,24.3321,96.037,95.981,5.207]
[1644704175670,2.92907621,96.05,95.981,112.13090296]
[1644704175873,2.92907621,96.05,95.982,2.62390296]
[1644704176071,2.92907621,96.052,95.983,5.207]
[1644704176272,5.207,96.051,95.982,2.62390296]
[1644704176476,4.61196063,96.05,95.984,2.62390296]
[1644704176774,2.92907621,96.047,95.984,2.62390296]
[1644704176975,5.207,96.046,95.984,2.62390296]
[1644704177173,8.13607621,96.046,95.984,2.62390296]
[1644704177373,4.61196063,96.045,95.984,2.62390296]
[1644704177773,24.5424,96.044,95.984,2.62390296]
[1644704179576,24.5424,96.044,95.985,5.207]
[1644704179975,24.5424,96.044,95.986,2.62390296]
[1644704180174,24.5424,96.044,95.988,104.3]
[1644704180575,24.5424,96.044,95.988,106.92390296]
[1644704180975,40.58270521,96.043,95.988,106.92390296]
[1644704181576,24.5424,96.044,95.988,106.92390296]
[1644704184977,24.5424,96.044,95.989,5.207]
[1644704185380,24.5424,96.044,95.99,2.62390296]
[1644704188481,24.5424,96.044,95.991,104.3]
[1644704188880,24.5424,96.044,95.992,2.62390296]
[1644704190281,24.5424,96.044,95.993,0.25]
[1644704190682,24.5424,96.044,95.994,2.62390296]
[1644704193484,24.5424,96.044,95.995,5.207]
[1644704193886,24.5424,96.044,95.996,2.62390296]
[1644704194285,24.5424,96.044,95.997,5.207]
[1644704194692,24.5424,96.044,95.998,2.62390296]
[1644704198089,0.03011079,96.068,96.0,15.6167]
[1644704198290,0.03011079,96.073,96.01,15.0]
[1644704198491,2.92907621,96.077,96.01,15.0]
[1644704198693,24.5051,96.095,96.011,7.82990296]
[1644704198694,2.92907621,96.089,96.011,7.82990296]
[1644704198888,4.6063045,96.094,96.011,7.82990296]
[1644704198889,2.92907621,96.091,96.012,104.3]
[1644704199090,2.92907621,96.091,96.014,104.3]
[1644704199290,2.92907621,96.093,96.015,5.205]
[1644704199491,4.6063045,96.094,96.031,46.08018051]
[1644704199690,24.5051,96.095,96.032,5.204]
[1644704199891,24.5051,96.095,96.04,15.6096]
[1644704200289,24.5051,96.095,96.041,2.62390296]
[1644704200589,24.5051,96.095,96.041,106.92390296]
[1644704201791,24.5051,96.095,96.042,2.62390296]
[1644704205497,24.5051,96.095,96.043,5.204]
[1644704205699,24.5051,96.095,96.041,104.3]
[1644704207498,24.5051,96.095,96.024,5.204]
[1644704207900,10.01187352,96.094,96.009,5.204]
[1644704208098,4.55787352,96.093,96.002,5.204]
[1644704208298,4.55787352,96.093,96.027,104.3]
[1644704209101,4.55787352,96.093,96.032,0.25]
[1644704210502,5.204,96.092,96.032,0.25]
[1644704210702,4.55787352,96.093,96.032,0.25]
[1644704210703,4.55787352,96.091,96.032,0.25]
[1644704210902,4.55787352,96.093,96.032,0.25]
[1644704211102,9.76187352,96.093,96.032,0.25]
[1644704211304,4.55787352,96.092,96.032,0.25]
[1644704211503,5.204,96.091,96.032,0.25]
[1644704211803,4.55787352,96.09,96.032,0.25]
[1644704212203,5.205,96.089,96.032,0.25]
[1644704212403,5.204,96.092,96.032,0.25]
[1644704212606,4.55922595,96.091,96.032,0.25]
[1644704212810,4.55922595,96.092,96.032,0.25]
[1644704213105,8.13307621,96.092,96.032,0.25]
[1644704213405,7.48830216,96.091,96.032,0.25]
[1644704213606,3.17907621,96.091,96.032,0.25]
[1644704213807,4.55922595,96.09,96.032,0.25]
[1644704214607,7.48830216,96.09,96.032,0.25]
[1644704215411,2.92907621,96.089,96.032,0.25]
[1644704215608,7.48830216,96.09,96.032,0.25]
[1644704216227,2.92907621,96.09,96.032,0.25]
[1644704216627,2.92907621,96.089,96.032,0.25]
[1644704217028,7.48830216,96.094,96.032,0.25]
[1644704217227,2.92907621,96.084,96.032,0.25]
[1644704217427,2.92907621,96.082,96.032,0.25]
[1644704217629,2.92907621,96.082,95.984,15.9121]
[1644704217630,2.92907621,96.079,95.985,5.205]
[1644704217828,2.92907621,96.07,95.992,47.98749244]
[1644704218032,8.13507621,96.069,95.992,47.98749244]
[1644704218331,4.55922595,96.068,95.992,47.98749244]
[1644704218528,38.28628639,96.066,95.992,47.98749244]
[1644704218730,4.55922595,96.065,95.993,5.206]
[1644704221231,5.206,96.064,95.992,47.98749244]
[1644704221633,4.55922595,96.063,95.992,47.98749244]
[1644704222131,5.206,96.062,95.992,47.98749244]
[1644704222330,4.55922595,96.061,95.992,47.98749244]
[1644704222532,7.48830216,96.065,95.993,5.206]
[1644704222731,7.51841295,96.065,95.993,5.206]
[1644704222931,7.48830216,96.065,95.993,5.206]
[1644704223432,2.92907621,96.063,95.993,5.206]
[1644704223632,5.206,96.062,95.992,47.98749244]
[1644704223841,4.55922595,96.061,95.993,104.3]
[1644704224038,4.55922595,96.062,95.993,109.506]
[1644704224439,2.92907621,96.064,95.993,109.506]
[1644704224839,7.48830216,96.065,95.993,109.506]
[1644704225139,5.206,96.064,95.993,104.3]
[1644704225338,4.55922595,96.063,95.994,5.206]
[1644704226540,5.206,96.062,95.994,5.206]
[1644704226744,4.55922595,96.063,95.994,5.206]
[1644704227542,5.206,96.062,95.994,5.206]
[1644704227942,4.55922595,96.061,95.994,5.206]
[1644704228348,4.42250673,96.063,95.994,5.206]
[1644704228542,2.92907621,96.062,95.993,5.206]
[1644704229548,2.92907621,96.061,95.993,5.206]
[1644704229749,2.92907621,96.061,95.992,0.25]
[1644704229950,5.206,96.06,95.992,0.25]
[1644704230149,8.13507621,96.061,95.993,5.206]
[1644704230350,2.92907621,96.061,95.993,5.206]
[1644704230551,8.13507621,96.062,95.993,5.206]
[1644704230750,2.92907621,96.061,95.992,0.25]
[1644704230951,8.13507621,96.061,95.992,0.25]
[1644704231150,2.92907621,96.061,95.993,5.206]
[1644704231351,2.92907621,96.061,95.992,0.25]
[1644704231751,2.92907621,96.06,95.992,0.25]
[1644704231951,2.92907621,96.059,95.992,0.25]
[1644704232153,8.13507621,96.058,95.992,0.25]
[1644704232354,23.9998,96.057,95.992,0.25]
[1644704232553,8.13607621,96.056,95.992,0.25]
[1644704232755,4.707,96.056,95.992,0.25]
[1644704232954,23.9998,96.057,95.992,0.25]
[1644704233354,26.92887621,96.057,95.992,0.25]
[1644704233556,5.207,96.056,95.992,0.25]
[1644704234660,23.9998,96.057,95.992,0.25]
[1644704235454,5.207,96.056,95.992,0.25]
[1644704238357,23.9998,96.057,95.993,5.207]
[1644704238758,23.9998,96.057,95.992,0.25]
[1644704238759,5.206,96.056,95.992,0.25]
[1644704239155,5.206,96.056,95.993,5.207]
[1644704239359,26.92887621,96.057,95.992,0.25]
[1644704239557,5.207,96.056,95.993,5.207]
[1644704239758,26.92887621,96.057,95.993,5.207]
[1644704239959,26.92887621,96.057,95.99,5.206]
[1644704240559,2.92907621,96.055,95.989,104.3]
[1644704240761,2.92907621,96.055,95.99,0.25]
[1644704240959,8.13607621,96.054,95.99,0.25]
[1644704241161,2.92907621,96.054,95.991,5.207]
[1644704241558,2.92907621,96.053,95.991,5.207]
[1644704242060,39.32635811,96.051,95.991,5.207]
[1644704242261,5.207,96.05,95.991,5.207]
[1644704242460,39.32635811,96.051,95.991,5.207]
[1644704242864,5.207,96.05,95.991,5.207]
[1644704243264,5.207,96.05,95.99,0.25]
[1644704243465,2.92907621,96.049,95.99,0.25]
[1644704243666,5.207,96.048,95.99,0.25]
[1644704243863,8.13607621,96.048,95.99,0.25]
[1644704244063,8.13607621,96.05,95.99,0.25]
[1644704244265,5.207,96.05,95.99,0.25]
[1644704245267,2.92907621,96.047,95.991,5.207]
[1644704245466,5.207,96.05,95.992,36.77306338]
[1644704245667,24.2716,96.046,95.993,104.3]
[1644704246066,24.2716,96.046,95.994,5.207]
[1644704246274,39.32635811,96.051,95.993,5.207]
[1644704246470,5.207,96.049,95.992,36.77306338]
[1644704246672,39.32635811,96.051,95.992,36.77306338]
[1644704246673,5.207,96.05,95.992,36.77306338]
[1644704247272,5.207,96.05,95.993,104.3]
[1644704247472,22.8905,96.049,95.993,104.3]
[1644704247873,22.8905,96.049,95.994,5.207]
[1644704248474,5.207,96.048,95.993,104.3]
[1644704248679,22.8905,96.049,95.994,5.207]
[1644704248880,22.8905,96.049,95.993,104.3]
[1644704249079,5.207,96.048,95.993,104.3]
[1644704249278,5.207,96.048,95.994,5.207]
[1644704249479,22.8905,96.049,95.994,5.207]
[1644704249679,5.207,96.048,95.993,104.3]
[1644704249879,5.207,96.048,95.994,5.207]
[1644704250076,5.207,96.048,95.993,104.3]
[1644704250077,22.8905,96.049,95.993,104.3]
[1644704250479,22.8905,96.049,95.99,0.25]
[1644704251483,22.8905,96.049,95.981,5.207]
[1644704251678,5.207,96.048,95.974,43.54766541]
[1644704251879,2.92907621,96.048,95.974,43.54766541]
[1644704252079,2.92907621,96.047,95.975,104.3]
[1644704252278,8.13607621,96.048,95.974,43.54766541]
[1644704252479,5.207,96.046,95.974,43.54766541]
[1644704252680,2.92907621,96.046,95.973,5.207]
[1644704252882,5.207,96.045,95.973,5.207]
[1644704253082,2.92907621,96.042,95.973,5.207]
[1644704253579,2.92907621,96.043,95.973,5.207]
[1644704253988,2.92907621,96.043,95.974,0.25]
[1644704254180,2.92907621,96.043,95.975,5.207]
[1644704255383,5.207,96.042,95.945,28.6564]
[1644704255581,2.92907621,96.024,95.945,28.6564]
[1644704255781,30.2616,96.042,95.935,5.208]
[1644704255782,2.92907621,96.019,95.935,5.208]
[1644704255982,2.92907621,96.019,95.931,5.208]
[1644704256182,5.208,96.018,95.931,5.208]
[1644704256384,2.92907621,96.015,95.931,5.208]
[1644704256585,2.92907621,96.006,95.915,5.208]
[1644704256783,104.3,96.016,95.882,23.071]
[1644704256784,5.21,96.005,95.918,5.21]
[1644704256982,69.79770078,96.017,95.918,5.21]
[1644704256983,2.92907621,96.006,95.918,5.21]
[1644704257184,8.13907621,96.008,95.918,5.21]
[1644704257383,2.92907621,96.009,95.918,5.21]
[1644704257602,2.92907621,96.006,95.918,5.21]
[1644704257802,24.8316,96.005,95.919,0.25]
[1644704258003,2.92907621,96.004,95.919,0.25]
[1644704258204,8.13907621,96.004,95.919,0.25]
[1644704258402,62.33,95.998,95.919,0.25]
[1644704258604,104.3,95.995,95.919,0.25]
[1644704259004,25.13250296,95.994,95.87,15.0]
[1644704259210,15.0,95.99,95.86,15.0]
[1644704259404,15.6386,95.98,95.86,15.0]
[1644704259604,104.3,95.976,95.86,15.0]
[1644704259806,104.3,95.976,95.861,104.3]
[1644704260006,5.212,95.975,95.861,104.3]
[1644704260206,29.2046,95.975,95.862,5.462]
[1644704260408,23.9926,95.975,95.863,104.3]
[1644704260606,5.212,95.974,95.864,5.212]
[1644704261409,5.212,95.974,95.865,24.8395]
[1644704261607,5.212,95.974,95.866,5.212]
[1644704261812,15.64,95.97,95.866,5.212]
[1644704262009,5.212,95.969,95.866,5.212]
[1644704263308,5.212,95.969,95.865,129.1395]
[1644704263709,5.212,95.969,95.872,104.3]
[1644704264711,23.9926,95.975,95.872,104.3]
[1644704264910,5.212,95.974,95.872,104.3]
[1644704265927,5.212,95.974,95.88,15.6363]
[1644704266128,23.9926,95.975,95.881,104.3]
[1644704266329,23.9926,95.975,95.882,24.4717]
[1644704266529,23.9926,95.975,95.883,104.3]
[1644704266728,5.212,95.974,95.883,104.3]
[1644704266933,5.212,95.974,95.884,0.25]
[1644704267629,0.25,95.973,95.884,0.25]
[1644704267829,5.212,95.972,95.892,104.3]
[1644704268030,5.212,95.972,95.894,104.3]
[1644704268231,5.212,95.974,95.894,104.3]
[1644704268432,36.39266666,95.977,95.894,104.3]
[1644704268630,36.39266666,95.977,95.895,2.62390296]
[1644704269030,36.39266666,95.977,95.9,15.633]
[1644704269231,36.39266666,95.977,95.901,109.511]
[1644704269435,36.39266666,95.977,95.901,104.3]
[1644704270632,36.39266666,95.977,95.902,5.211]
[1644704270830,51.7274,96.007,95.911,104.3]
[1644704271231,5.21,96.019,95.92,15.0]
[1644704271433,28.4197,96.036,95.922,104.3]
[1644704271630,28.4197,96.036,95.923,5.208]